bitfinex/quotes_BTCUSD_20251015
["timestamp","ask_amount","ask_price","bid_price","bid_amount"]
[1760495996621,0.51649135,113320.0,113310.0,0.19515761]
[1760495996838,0.51649135,113320.0,113310.0,0.17750692]
[1760495997485,0.51649135,113320.0,113310.0,0.001]
[1760495997703,0.51649135,113320.0,113310.0,0.01865069]
[1760495997915,0.51649135,113320.0,113310.0,0.001]
[1760495999218,1.16408864,113320.0,113310.0,0.001]
[1760495999846,0.51650692,113310.0,113300.0,0.01780124]
[1760496000122,0.51650692,113310.0,113300.0,0.19432374]
[1760496000306,0.34,113310.0,113300.0,0.19432374]
[1760496000421,0.34,113310.0,113300.0,0.17667149]
[1760496001068,0.34,113310.0,113300.0,0.17767149]
[1760496001547,0.01776205,113330.0,113320.0,0.17649135]
[1760496001748,0.01776205,113330.0,113320.0,0.19414048]
[1760496002073,0.00208374,113330.0,113320.0,0.19414048]
[1760496002273,0.00208374,113330.0,113320.0,0.30574048]
[1760496002477,0.00208374,113330.0,113320.0,0.82408864]
[1760496002684,0.00208374,113330.0,113320.0,0.28809135]
[1760496002926,0.00208374,113330.0,113320.0,0.17649135]
[1760496003148,0.00208374,113330.0,113320.0,1.07921017]
[1760496003291,0.00208374,113330.0,113320.0,1.06156104]
[1760496003496,0.01383551,113360.0,113350.0,0.17644464]
[1760496003718,0.82402636,113360.0,113340.0,0.28804681]
[1760496003934,0.17642907,113360.0,113340.0,0.17644681]
[1760496004136,0.51642907,113360.0,113340.0,0.28804681]
[1760496004457,0.00322478,113350.0,113340.0,0.28804681]
[1760496004669,0.00322478,113350.0,113340.0,0.2881958]
[1760496004879,0.00322478,113350.0,113340.0,0.1765958]
[1760496005080,0.00322478,113350.0,113340.0,0.19424182]
[1760496005490,0.00322478,113350.0,113340.0,0.30584182]
[1760496005712,0.00322478,113350.0,113340.0,0.2881958]
[1760496006339,0.00322478,113350.0,113340.0,0.1775958]
[1760496006562,0.00322478,113350.0,113340.0,0.2891958]
[1760496006791,0.00322478,113350.0,113340.0,0.2881958]
[1760496007222,0.00322478,113350.0,113340.0,0.2891958]
[1760496010538,0.00322478,113350.0,113340.0,0.2891558]
[1760496010780,0.00322478,113350.0,113340.0,0.905015]
[1760496011019,0.00322478,113350.0,113340.0,0.793455]
[1760496011223,0.00322478,113350.0,113340.0,0.905015]
[1760496011803,0.00322478,113350.0,113340.0,0.94119728]
[1760496013012,0.00322478,113350.0,113340.0,0.3034682]
[1760496013215,0.00322478,113350.0,113340.0,0.1775958]
[1760496013450,0.00322478,113350.0,113340.0,0.2891558]
[1760496013660,0.00322478,113350.0,113340.0,0.28916919]
[1760496014749,0.00322478,113350.0,113340.0,0.17760919]
[1760496014946,0.00322478,113350.0,113340.0,0.28916919]
[1760496015146,0.00322478,113350.0,113340.0,0.17760919]
[1760496015370,0.00322478,113350.0,113340.0,0.28916919]
[1760496015527,0.00322478,113350.0,113340.0,0.81533827]
[1760496015695,0.00322478,113350.0,113340.0,0.28916919]
[1760496016314,0.00322478,113350.0,113340.0,0.17760919]
[1760496016540,0.00322478,113350.0,113340.0,0.28916919]
[1760496017168,0.00322478,113350.0,113340.0,0.17760919]
[1760496017514,0.00322478,113350.0,113340.0,0.28916919]
[1760496017953,0.00322478,113350.0,113340.0,0.17760919]
[1760496018165,0.00322478,113350.0,113340.0,0.28916919]
[1760496018596,0.00322478,113350.0,113340.0,0.17760919]
[1760496019261,0.00322478,113350.0,113340.0,0.28916919]
[1760496021100,0.00322478,113350.0,113340.0,0.17760919]
[1760496021268,0.00322478,113350.0,113340.0,0.28916919]
[1760496022323,0.00322478,113350.0,113340.0,0.17760919]
[1760496022747,0.00322478,113350.0,113340.0,0.28916919]
[1760496023195,0.00322478,113350.0,113340.0,0.17760919]
[1760496023526,0.00322478,113350.0,113340.0,0.28916919]
[1760496024921,0.00322478,113350.0,113340.0,0.17760919]
[1760496025127,0.00322478,113350.0,113340.0,0.00114899]
[1760496025128,0.7058385,113350.0,113340.0,0.00114899]
[1760496025336,1.0458385,113350.0,113340.0,0.00114899]
[1760496026148,1.0458385,113350.0,113340.0,0.00014899]
[1760496026351,1.0458385,113350.0,113340.0,0.01779501]
[1760496026993,0.34,113350.0,113340.0,0.01779501]
[1760496027214,1.04261372,113350.0,113340.0,0.01779501]
[1760496027426,1.04261372,113350.0,113340.0,0.01879501]
[1760496030225,0.51644464,113350.0,113340.0,0.01879501]
[1760496033070,1.04261372,113350.0,113340.0,0.01879501]
[1760496033484,0.88705892,113350.0,113340.0,0.01879501]
[1760496033705,0.88705892,113350.0,113340.0,0.00114899]
[1760496034367,0.88705892,113350.0,113340.0,0.01879501]
[1760496034581,1.2576732,113350.0,113340.0,0.00114899]
[1760496036479,1.2576732,113350.0,113340.0,0.00014899]
[1760496037438,0.88705892,113350.0,113340.0,0.00014899]
[1760496037641,1.2576732,113350.0,113340.0,0.00014899]
[1760496037998,0.51644464,113350.0,113340.0,0.00014899]
[1760496038191,0.88705892,113350.0,113340.0,0.00014899]
[1760496039103,0.88710292,113350.0,113340.0,0.00014899]
[1760496039314,0.88705892,113350.0,113340.0,0.00014899]
[1760496040368,0.51644464,113350.0,113340.0,0.00014899]
[1760496040526,0.88705892,113350.0,113340.0,0.00014899]
[1760496040933,0.24042412,113370.0,113340.0,0.17660919]
[1760496041136,0.20005043,113370.0,113350.0,0.1940891]
[1760496041491,0.57066471,113370.0,113350.0,0.1940891]
[1760496041699,0.57066471,113370.0,113350.0,0.19408488]
[1760496041838,0.54704335,113360.0,113350.0,0.19408488]
[1760496042039,0.88704335,113360.0,113350.0,0.01764446]
[1760496042822,0.17644464,113350.0,113340.0,0.00014899]
[1760496043054,0.54705892,113350.0,113340.0,0.00014899]
[1760496043251,0.88704335,113360.0,113340.0,0.19425521]
[1760496043463,0.34,113360.0,113350.0,0.17744464]
[1760496043670,0.51642907,113360.0,113350.0,0.17744464]
[1760496043874,0.51642907,113360.0,113340.0,0.17660919]
[1760496044073,0.51642907,113360.0,113340.0,0.19425521]
[1760496044486,0.51642907,113360.0,113340.0,0.19525521]
[1760496044685,0.51642907,113360.0,113340.0,0.17760919]
[1760496044882,0.51642907,113360.0,113350.0,0.01764446]
[1760496045199,0.17642907,113360.0,113350.0,0.01764446]
[1760496046622,0.17699958,113360.0,113350.0,0.01764446]
[1760496047031,0.17699958,113360.0,113350.0,0.01864446]
[1760496047233,0.70332788,113360.0,113350.0,0.001]
[1760496048361,0.17699958,113360.0,113350.0,0.001]
[1760496048763,0.17699958,113360.0,113350.0,0.1950891]
[1760496048964,0.00057051,113360.0,113350.0,0.17744464]
[1760496050567,0.17699958,113360.0,113350.0,0.001]
[1760496051582,0.17699958,113360.0,113350.0,0.17744464]
[1760496051789,0.17699958,113360.0,113350.0,0.1950891]
[1760496051985,0.17699958,113360.0,113350.0,0.001]
[1760496052189,1.04332788,113360.0,113350.0,0.001]
[1760496053186,0.51644464,113350.0,113340.0,0.00014899]
[1760496053385,1.04277294,113350.0,113340.0,0.00014899]
[1760496063814,0.51644464,113350.0,113340.0,0.00014899]
[1760496064030,1.04277294,113350.0,113340.0,0.00014899]
[1760496065457,1.25780038,113350.0,113340.0,0.00014899]
[1760496066312,0.88712251,113350.0,113340.0,0.00014899]
[1760496066552,0.34,113350.0,113340.0,0.17660919]
[1760496066736,0.17644464,113350.0,113340.0,0.17660919]
[1760496066934,0.88712251,113350.0,113340.0,0.00014899]
[1760496067135,0.54712251,113350.0,113340.0,0.00014899]
[1760496067438,0.88712251,113350.0,113340.0,0.00014899]
[1760496068206,0.88712251,113350.0,113340.0,0.01779501]
[1760496068414,0.88712251,113350.0,113340.0,0.19425521]
[1760496069390,0.51644464,113350.0,113340.0,0.19425521]
[1760496069650,0.34,113350.0,113340.0,0.19425521]
[1760496070027,0.51644464,113350.0,113340.0,0.01779501]
[1760496070432,0.51644464,113350.0,113340.0,0.19425521]
[1760496071144,0.34,113350.0,113340.0,0.19425521]
[1760496072742,0.51644464,113350.0,113340.0,0.19425521]
[1760496072943,0.51644464,113350.0,113340.0,0.01779501]
[1760496073332,0.51644464,113350.0,113340.0,0.19425521]
[1760496075056,0.34,113350.0,113340.0,0.19425521]
[1760496076764,0.51644464,113350.0,113340.0,0.19425521]
[1760496077149,0.51644464,113350.0,113340.0,0.01779501]
[1760496077297,0.51644464,113350.0,113340.0,0.00014899]
[1760496077497,0.51644464,113350.0,113340.0,0.17660919]
[1760496077716,0.51644464,113350.0,113340.0,0.19425521]
[1760496080423,0.34,113350.0,113340.0,0.19425521]
[1760496081943,0.51644464,113350.0,113340.0,0.19425521]
[1760496090276,0.34,113350.0,113340.0,0.19425521]
[1760496091464,0.00057051,113360.0,113350.0,0.17644464]
[1760496091835,0.00057051,113360.0,113350.0,0.67615585]
[1760496092045,0.00057051,113360.0,113350.0,0.65851139]
[1760496093352,0.00057051,113360.0,113350.0,0.28792464]
[1760496093766,0.00057051,113360.0,113350.0,0.65851139]
[1760496094139,0.00057051,113360.0,113350.0,0.28792464]
[1760496095130,0.00057051,113360.0,113350.0,0.74820151]
[1760496095299,0.00057051,113360.0,113350.0,0.67390379]
[1760496095630,0.00057051,113360.0,113350.0,0.78538379]
[1760496095843,0.00057051,113360.0,113350.0,0.74920151]
[1760496096225,0.00057051,113360.0,113350.0,0.63772151]
[1760496096592,0.00057051,113360.0,113350.0,0.17744464]
[1760496096768,0.00057051,113360.0,113350.0,0.65951139]
[1760496097362,0.00057051,113360.0,113350.0,0.54803139]
[1760496097966,0.00057051,113360.0,113350.0,0.17744464]
[1760496098303,0.00057051,113360.0,113350.0,0.65951139]
[1760496099068,0.00057051,113360.0,113350.0,0.28892464]
[1760496100316,0.00057051,113360.0,113350.0,0.17744464]
[1760496100930,0.00057051,113360.0,113350.0,0.28892464]
[1760496102805,0.00057051,113360.0,113350.0,0.17744464]
[1760496102958,0.00057051,113360.0,113350.0,0.28892464]
[1760496103162,0.00057051,113360.0,113350.0,0.54803139]
[1760496103378,0.00057051,113360.0,113350.0,0.65951139]
[1760496111955,0.00057051,113360.0,113350.0,0.28888464]
[1760496113367,0.17699958,113360.0,113350.0,0.17744464]
[1760496113634,0.17642907,113360.0,113350.0,0.001]
[1760496113870,0.17642907,113360.0,113350.0,0.28888464]
[1760496113871,0.54701582,113360.0,113350.0,0.28888464]
[1760496114100,0.17642907,113360.0,113350.0,0.28888464]
[1760496114346,0.17642907,113360.0,113350.0,0.17744464]
[1760496114566,0.49177631,113370.0,113350.0,0.17744464]
[1760496114863,0.34,113360.0,113350.0,0.17744464]
[1760496115636,0.34,113360.0,113350.0,0.17644464]
[1760496116331,0.34,113360.0,113350.0,0.1940891]
[1760496117034,0.34,113360.0,113350.0,0.1950891]
[1760496117267,0.34,113360.0,113350.0,0.17744464]
[1760496117488,0.34,113360.0,113350.0,0.17644464]
[1760496117700,0.34,113360.0,113350.0,0.1940891]
[1760496118269,0.34,113360.0,113350.0,0.1950891]
[1760496118524,0.34,113360.0,113350.0,0.17744464]
[1760496118770,0.49177631,113370.0,113350.0,0.17744464]
[1760496119568,0.49177631,113370.0,113360.0,0.17642907]
[1760496119797,0.12118956,113370.0,113360.0,0.17642907]
[1760496119991,0.22531749,113390.0,113370.0,0.17641351]
[1760496120196,0.17639795,113380.0,113360.0,0.29669052]
[1760496120426,0.17641351,113370.0,113360.0,0.29669052]
[1760496120574,0.5469847,113380.0,113360.0,0.29669052]
[1760496120973,0.34,113370.0,113360.0,0.29769052]
[1760496121406,0.19878367,113390.0,113370.0,0.17641351]
[1760496121407,0.56937042,113390.0,113370.0,0.17641351]
[1760496121587,0.34,113380.0,113370.0,0.19128282]
[1760496122676,0.18997198,113390.0,113370.0,0.19128282]
[1760496122823,0.34,113380.0,113370.0,0.19128282]
[1760496123443,0.51639795,113380.0,113370.0,0.19128282]
[1760496124437,0.34,113380.0,113370.0,0.19128282]
[1760496124642,0.34,113380.0,113370.0,0.19228282]
[1760496124887,0.51639795,113380.0,113370.0,0.17741351]
[1760496125218,0.51639795,113380.0,113370.0,0.001]
[1760496125340,0.8869847,113380.0,113370.0,0.001]
[1760496125544,0.88812547,113380.0,113370.0,0.001]
[1760496127183,1.25871222,113380.0,113370.0,0.001]
[1760496127622,1.27254414,113380.0,113370.0,0.001]
[1760496127841,1.28908504,113380.0,113370.0,0.001]
[1760496128045,0.51644464,113350.0,113340.0,0.07190109]
[1760496128347,0.88703139,113350.0,113340.0,0.07190109]
[1760496128548,0.88703139,113350.0,113340.0,0.00014899]
[1760496129965,0.88703139,113350.0,113340.0,0.17660919]
[1760496130168,0.88703139,113350.0,113340.0,0.00114899]
[1760496130372,0.88703139,113350.0,113340.0,0.00214899]
[1760496130841,0.51644464,113350.0,113340.0,0.00214899]
[1760496131442,0.88704642,113350.0,113340.0,0.00214899]
[1760496131641,0.34,113350.0,113340.0,0.19625521]
[1760496131843,0.51644464,113350.0,113340.0,0.17860919]
[1760496132129,0.88704642,113350.0,113340.0,0.17860919]
[1760496132748,0.71060178,113350.0,113340.0,0.17860919]
[1760496132952,0.88704642,113350.0,113340.0,0.17860919]
[1760496133190,0.34,113350.0,113340.0,0.54921097]
[1760496133429,0.54701544,113370.0,113350.0,0.17642979]
[1760496133693,0.88703085,113360.0,113350.0,0.01764446]
[1760496133908,0.54703085,113360.0,113350.0,0.01764446]
[1760496134124,0.51642907,113360.0,113350.0,0.1940891]
[1760496134338,0.71060178,113360.0,113350.0,0.18851476]
[1760496134786,0.71060178,113360.0,113350.0,0.18951476]
[1760496135018,0.34,113360.0,113350.0,0.56011654]
[1760496135227,0.00057043,113370.0,113360.0,0.17642907]
[1760496135819,0.34057043,113370.0,113360.0,0.17642907]
[1760496135965,0.00057043,113370.0,113360.0,0.54703085]
[1760496136166,0.00057043,113370.0,113360.0,0.17642907]
[1760496136389,0.17698394,113370.0,113360.0,0.19407197]
[1760496136559,0.00057043,113370.0,113360.0,0.19507197]
[1760496136754,0.00057043,113370.0,113360.0,0.17742907]
[1760496136959,0.00057043,113370.0,113360.0,0.54803085]
[1760496137366,0.00057043,113370.0,113360.0,0.17742907]
[1760496137714,0.17698394,113370.0,113360.0,0.17742907]
[1760496137922,0.17698394,113370.0,113340.0,0.1854322]
[1760496138123,0.1764295,113360.0,113340.0,0.1854322]
[1760496138326,0.1764295,113360.0,113350.0,0.28788464]
[1760496139163,0.1764295,113360.0,113350.0,0.17644464]
[1760496139370,0.17644464,113350.0,113340.0,0.1854322]
[1760496139593,0.70254057,113360.0,113350.0,0.001]
[1760496140230,0.17644464,113350.0,113340.0,0.17660883]
[1760496140719,0.17644464,113350.0,113340.0,0.17760883]
[1760496141347,0.1764295,113360.0,113350.0,0.17644464]
[1760496141518,0.5164295,113360.0,113350.0,0.17644464]
[1760496141724,0.51642907,113360.0,113350.0,0.17644464]
[1760496141934,0.34,113360.0,113350.0,0.17644464]
[1760496142073,0.51642907,113360.0,113350.0,0.1940891]
[1760496142279,0.51642907,113360.0,113350.0,0.01764446]
[1760496142693,0.51642907,113360.0,113350.0,0.01864446]
[1760496143333,0.51642907,113360.0,113350.0,0.01964446]
[1760496148055,0.34,113360.0,113350.0,0.1960891]
[1760496148256,0.34,113360.0,113350.0,0.17844464]
[1760496148593,0.51642907,113360.0,113350.0,0.17844464]
[1760496149600,0.51642907,113360.0,113350.0,0.002]
[1760496149814,0.51642907,113360.0,113350.0,0.01964446]
[1760496150335,0.51642907,113360.0,113350.0,0.1960891]
[1760496150537,0.51642907,113360.0,113350.0,0.17844464]
[1760496151557,0.34,113360.0,113350.0,0.17844464]
[1760496151754,0.00057043,113370.0,113360.0,0.17642907]
[1760496151755,0.51698394,113370.0,113360.0,0.17642907]
[1760496152053,0.17642907,113360.0,113350.0,0.17844464]
[1760496152590,0.17642907,113360.0,113350.0,0.17744464]
[1760496153352,0.51698394,113370.0,113350.0,0.17744464]
[1760496154844,0.17642907,113360.0,113350.0,0.17744464]
[1760496155625,0.17642907,113360.0,113350.0,0.17644464]
[1760496155847,0.17642907,113360.0,113350.0,0.1940891]
[1760496155997,0.17642907,113360.0,113350.0,0.1960891]
[1760496156173,0.17642907,113360.0,113350.0,0.17744464]
[1760496156376,0.17642907,113360.0,113350.0,0.1950891]
[1760496156631,0.17642907,113360.0,113350.0,0.1960891]
[1760496156825,0.51642907,113360.0,113350.0,0.01964446]
[1760496157025,1.04254014,113360.0,113350.0,0.002]
[1760496159443,1.25766637,113360.0,113350.0,0.002]
[1760496159819,1.25766637,113360.0,113350.0,0.001]
[1760496160029,0.88704772,113360.0,113350.0,0.001]
[1760496162489,1.25766637,113360.0,113350.0,0.001]
[1760496167114,0.51642907,113360.0,113350.0,0.001]
[1760496167323,0.88704772,113360.0,113350.0,0.001]
[1760496168353,1.25766637,113360.0,113350.0,0.001]
[1760496187627,1.64484984,113360.0,113350.0,0.001]
[1760496188048,1.67139129,113360.0,113350.0,0.001]
[1760496188387,0.51644464,113350.0,113340.0,0.00014899]
[1760496188589,1.25768194,113350.0,113340.0,0.00014899]
[1760496191610,0.88715814,113350.0,113340.0,0.00114899]
[1760496193184,1.25787164,113350.0,113340.0,0.00114899]
[1760496193549,1.28441508,113350.0,113340.0,0.00114899]
[1760496194119,1.32059736,113350.0,113340.0,0.00114899]
[1760496194316,1.33713664,113350.0,113340.0,0.00114899]
[1760496194743,1.33713664,113350.0,113340.0,0.00014899]
[1760496195201,1.33713664,113350.0,113340.0,0.00114899]
[1760496195679,1.33713664,113350.0,113340.0,0.00014899]
[1760496195910,0.96642314,113350.0,113340.0,0.00014899]
[1760496196112,0.91370158,113350.0,113340.0,0.00014899]
[1760496197378,0.9275371,113350.0,113340.0,0.00014899]
[1760496197991,0.87654327,113350.0,113340.0,0.00014899]
[1760496198734,1.24725677,113350.0,113340.0,0.00014899]
[1760496199533,1.28343905,113350.0,113340.0,0.00014899]
[1760496204684,1.29995898,113350.0,113340.0,0.00014899]
[1760496205927,1.74545898,113350.0,113340.0,0.00014899]
[1760496208460,1.74545898,113350.0,113320.0,0.07440621]
[1760496208461,0.54718927,113330.0,113320.0,0.07440621]
[1760496208670,0.8872386,113330.0,113320.0,0.00265411]
[1760496209229,0.91378758,113330.0,113320.0,0.00265411]
[1760496209648,0.94996986,113330.0,113320.0,0.00265411]
[1760496209913,0.94996986,113330.0,113320.0,0.00365411]
[1760496211024,0.94996986,113330.0,113320.0,0.00265411]
[1760496211760,0.96380754,113330.0,113320.0,0.00265411]
[1760496216292,0.98033625,113330.0,113320.0,0.00265411]
[1760496216482,1.25793392,113310.0,113300.0,0.0717521]
[1760496216827,0.17653808,113290.0,113280.0,0.0717521]
[1760496217241,0.17655367,113280.0,113270.0,0.17696871]
[1760496217738,0.17655367,113280.0,113270.0,0.0004]
[1760496217739,0.88726717,113280.0,113270.0,0.0004]
[1760496218149,0.88735415,113280.0,113270.0,0.0004]
[1760496218354,0.51664065,113280.0,113270.0,0.0004]
[1760496218720,0.5283597,113280.0,113270.0,0.0024]
[1760496218926,0.5283597,113280.0,113270.0,0.0004]
[1760496219123,0.5283597,113280.0,113270.0,0.0014]
[1760496219642,0.5283597,113280.0,113270.0,0.0024]
[1760496220004,0.5283597,113280.0,113270.0,0.0014]
[1760496220204,0.5283597,113280.0,113270.0,0.0024]
[1760496220445,0.8990732,113280.0,113270.0,0.0024]
[1760496220817,0.5283597,113280.0,113270.0,0.0024]
[1760496228454,0.8990732,113280.0,113270.0,0.0024]
[1760496228781,0.8990732,113280.0,113270.0,0.00525528]
[1760496229362,0.5283597,113280.0,113270.0,0.00525528]
[1760496231598,0.8990732,113280.0,113270.0,0.00525528]
[1760496232904,0.5283597,113280.0,113270.0,0.00525528]
[1760496233106,0.8990732,113280.0,113270.0,0.00525528]
[1760496233329,0.5283597,113280.0,113270.0,0.00525528]
[1760496234103,0.5549599,113280.0,113270.0,0.00525528]
[1760496234308,0.5549159,113280.0,113270.0,0.00525528]
[1760496238748,0.37836223,113280.0,113270.0,0.18182453]
[1760496238921,0.35180603,113280.0,113270.0,0.55253803]
[1760496239139,0.35180603,113280.0,113270.0,0.18182453]
[1760496239267,0.5283597,113280.0,113270.0,0.00525528]
[1760496240379,0.8990732,113280.0,113270.0,0.00525528]
[1760496241261,0.92562942,113280.0,113270.0,0.00525528]
[1760496242932,0.71458924,113280.0,113270.0,0.00525528]
[1760496244876,0.57382339,113280.0,113270.0,0.00525528]
[1760496245077,0.58490724,113280.0,113270.0,0.00525528]
[1760496245641,1.29562074,113280.0,113270.0,0.00525528]
[1760496245846,1.34836115,113280.0,113270.0,0.00525528]
[1760496246057,1.36220375,113280.0,113270.0,0.00525528]
[1760496246499,1.36220375,113280.0,113270.0,0.00325528]
[1760496246700,0.51658484,113260.0,113250.0,0.0004]
[1760496246928,0.90385647,113260.0,113250.0,0.0004]
[1760496247370,0.9304209,113260.0,113250.0,0.0004]
[1760496248026,0.5597074,113260.0,113250.0,0.0004]
[1760496248234,0.9304209,113260.0,113250.0,0.0014]
[1760496248473,0.59588968,113260.0,113250.0,0.0024]
[1760496248647,0.96660318,113260.0,113250.0,0.0024]
[1760496249296,0.95004505,113260.0,113250.0,0.0024]
[1760496252234,0.54314927,113260.0,113250.0,0.17900044]
[1760496252425,0.54314927,113260.0,113250.0,0.18014301]
[1760496252606,0.54314927,113260.0,113250.0,0.00354257]
[1760496253592,0.91431236,113260.0,113250.0,0.00354257]
[1760496254416,0.17658272,113270.0,113250.0,0.18014301]
[1760496254632,0.2103078,113280.0,113250.0,0.18014301]
[1760496254633,0.58147089,113280.0,113260.0,0.54774793]
[1760496254835,0.51656925,113270.0,113260.0,0.17658484]
[1760496255040,0.17656925,113270.0,113260.0,0.17658484]
[1760496255451,0.51656925,113270.0,113260.0,0.17658484]
[1760496255663,0.03764073,113280.0,113270.0,0.17656925]
[1760496255871,0.01108385,113280.0,113270.0,0.56538926]
[1760496256097,0.01108385,113280.0,113270.0,0.54773234]
[1760496256311,0.57425835,113290.0,113270.0,0.54773234]
[1760496256515,0.01103238,113280.0,113270.0,0.54822974]
[1760496256729,0.17654014,113290.0,113280.0,0.17655367]
[1760496256921,0.51654014,113290.0,113280.0,0.17655367]
[1760496257134,0.1878954,113290.0,113280.0,0.17655367]
[1760496258360,0.5278954,113290.0,113280.0,0.17655367]
[1760496258783,0.35135526,113290.0,113280.0,0.54771676]
[1760496258988,0.35135526,113290.0,113280.0,0.54871676]
[1760496258989,0.01135526,113290.0,113280.0,0.54871676]
[1760496259200,0.01135526,113290.0,113280.0,0.54971676]
[1760496259422,0.88770117,113290.0,113280.0,0.002]
[1760496259879,0.8987235,113290.0,113280.0,0.001]
[1760496260438,0.8987235,113290.0,113280.0,0.003]
[1760496260620,0.8987235,113290.0,113280.0,0.002]
[1760496260822,0.51655367,113280.0,113270.0,0.17706626]
[1760496262779,0.51655367,113280.0,113270.0,0.18006626]
[1760496263392,0.34,113280.0,113270.0,0.18006626]
[1760496264983,0.51655367,113280.0,113270.0,0.18006626]
[1760496265959,0.51655367,113280.0,113270.0,0.0034974]
[1760496266236,0.51655367,113280.0,113270.0,0.18006665]
[1760496266424,0.88771676,113280.0,113270.0,0.18006665]
[1760496267741,0.88771676,113280.0,113270.0,0.0034974]
[1760496267923,0.51655367,113280.0,113270.0,0.19772357]
[1760496268126,0.34,113280.0,113270.0,0.18006665]
[1760496268334,0.51655367,113280.0,113270.0,0.18006665]
[1760496273498,0.34,113280.0,113270.0,0.18006665]
[1760496276852,0.5587235,113290.0,113280.0,0.17655367]
[1760496277087,0.52756041,113290.0,113280.0,0.17655367]
[1760496277460,0.52756041,113290.0,113270.0,0.55122974]
[1760496277683,0.52756041,113290.0,113270.0,0.66258974]
[1760496278052,0.8987235,113290.0,113270.0,0.66258974]
[1760496278254,0.8987235,113290.0,113270.0,0.17706665]
[1760496278461,0.8987235,113290.0,113280.0,0.002]
[1760496278961,0.8987235,113290.0,113270.0,0.17706665]
[1760496279208,0.8987235,113290.0,113270.0,0.17806665]
[1760496279832,0.8987235,113290.0,113280.0,0.001]
[1760496280041,0.52756041,113290.0,113280.0,0.001]
[1760496281408,0.52756041,113290.0,113270.0,0.17806665]
[1760496281655,0.52756041,113290.0,113280.0,0.17655367]
[1760496282101,0.52756041,113290.0,113280.0,0.001]
[1760496282328,0.52756041,113290.0,113280.0,0.002]
[1760496286942,0.8987235,113290.0,113280.0,0.002]
[1760496292197,0.92527674,113290.0,113280.0,0.002]
[1760496294126,0.8987235,113290.0,113280.0,0.002]
[1760496300739,0.52756041,113290.0,113280.0,0.002]
[1760496300938,0.52756041,113290.0,113280.0,0.17855367]
[1760496301395,0.35102233,113290.0,113280.0,0.54971676]
[1760496301621,0.18798757,113310.0,113300.0,0.1765225]
[1760496301843,0.19893366,113310.0,113300.0,0.54768559]
[1760496302015,0.57009675,113310.0,113300.0,0.1765225]
[1760496302247,0.53893366,113310.0,113300.0,0.1765225]
[1760496302454,0.02242674,113310.0,113300.0,0.1765225]
[1760496302857,0.02242674,113310.0,113300.0,0.56533784]
[1760496303061,0.02242674,113310.0,113300.0,0.54768559]
[1760496303635,0.02242674,113310.0,113300.0,0.65900559]
[1760496304216,0.02242674,113310.0,113300.0,0.66000559]
[1760496304423,0.02242674,113310.0,113300.0,0.2888425]
[1760496304624,0.19893366,113310.0,113300.0,0.2888425]
[1760496304829,0.57009675,113310.0,113300.0,0.2878425]
[1760496305101,0.19893366,113310.0,113300.0,0.2878425]
[1760496305334,0.19893366,113310.0,113300.0,0.1785225]
[1760496305756,0.19893366,113310.0,113300.0,0.1795225]
[1760496306538,0.02242674,113310.0,113300.0,0.1795225]
[1760496306758,0.02242674,113310.0,113300.0,0.2908025]
[1760496307476,0.19893366,113310.0,113300.0,0.1795225]
[1760496307605,0.57009675,113310.0,113300.0,0.2908025]
[1760496308007,0.19893366,113310.0,113300.0,0.1795225]
[1760496308213,0.02242674,113310.0,113300.0,0.1795225]
[1760496308429,0.02242674,113310.0,113300.0,0.2908025]
[1760496309410,0.02242674,113310.0,113300.0,0.1795225]
[1760496309533,0.02242674,113310.0,113300.0,0.2908025]
[1760496309738,0.02242674,113310.0,113300.0,0.1795225]
[1760496309978,0.02242674,113310.0,113300.0,0.2908025]
[1760496310330,0.02242674,113310.0,113300.0,0.66196559]
[1760496310897,0.02242674,113310.0,113300.0,0.55068559]
[1760496311238,0.00265531,113310.0,113300.0,0.1795225]
[1760496311402,0.00265531,113310.0,113300.0,0.2908025]
[1760496311620,0.00265531,113310.0,113300.0,0.66196559]
[1760496312006,0.00265531,113310.0,113300.0,0.55068559]
[1760496312212,0.00265531,113310.0,113300.0,0.1795225]
[1760496312412,0.00265531,113310.0,113300.0,0.2908025]
[1760496313229,0.31458354,113320.0,113300.0,0.1795225]
[1760496313433,0.49107775,113320.0,113300.0,0.2908025]
[1760496313798,0.51140797,113320.0,113300.0,0.2908025]
[1760496314203,0.51140797,113320.0,113300.0,0.1775225]
[1760496314564,0.51140797,113320.0,113300.0,0.2888025]
[1760496314775,0.51140797,113320.0,113300.0,0.2898025]
[1760496314976,0.53682443,113320.0,113310.0,0.17650692]
[1760496315193,0.90798752,113320.0,113310.0,0.17650692]
[1760496315430,0.53682443,113320.0,113310.0,0.17650692]
[1760496315854,0.34,113320.0,113310.0,0.67620243]
[1760496316061,0.01383731,113330.0,113320.0,0.17649135]
[1760496316285,0.19691651,113330.0,113320.0,0.19414048]
[1760496316507,0.53691651,113330.0,113320.0,0.01764913]
[1760496316666,0.90768133,113330.0,113320.0,0.12892913]
[1760496316861,0.90768133,113330.0,113320.0,0.01764913]
[1760496317065,0.90768133,113330.0,113320.0,0.19414048]
[1760496317265,0.53691651,113330.0,113320.0,0.19414048]
[1760496317996,0.53691651,113330.0,113320.0,0.19514048]
[1760496318174,0.53691651,113330.0,113320.0,0.17749135]
[1760496320151,0.36044074,113330.0,113320.0,0.17749135]
[1760496320478,0.53691651,113330.0,113320.0,0.17749135]
[1760496322513,0.53691651,113330.0,113320.0,0.28873135]
[1760496322869,0.53805804,113330.0,113320.0,0.28873135]
[1760496323084,0.53805804,113330.0,113320.0,0.17749135]
[1760496323707,0.53805804,113330.0,113320.0,0.28873135]
[1760496326350,0.53805804,113330.0,113320.0,0.17749135]
[1760496326555,0.53805804,113330.0,113320.0,0.28873135]
[1760496327858,0.53805804,113330.0,113320.0,0.17749135]
[1760496328186,0.53805804,113330.0,113320.0,0.28873135]
[1760496328581,0.53805804,113330.0,113320.0,0.17749135]
[1760496330488,0.29993885,113330.0,113320.0,0.17749135]
[1760496331124,0.1776173,113330.0,113320.0,0.17749135]
[1760496333620,0.19801691,113330.0,113320.0,0.17749135]
[1760496336169,0.36154114,113330.0,113320.0,0.17749135]
[1760496337540,0.34114153,113330.0,113320.0,0.65949617]
[1760496337733,0.00114153,113330.0,113320.0,0.54825617]
[1760496338347,0.00114153,113330.0,113320.0,0.28873135]
[1760496338547,0.00114153,113330.0,113320.0,0.17749135]
[1760496338745,0.00114153,113330.0,113320.0,0.28873135]
[1760496339589,0.00114153,113330.0,113320.0,0.17749135]
[1760496339995,0.00114153,113330.0,113320.0,0.28873135]
[1760496340345,0.00114153,113330.0,113320.0,0.17749135]
[1760496340545,0.00114153,113330.0,113320.0,0.28869135]
[1760496342469,0.00114153,113330.0,113320.0,0.17749135]
[1760496342694,0.00114153,113330.0,113320.0,0.28869135]
[1760496342889,0.00114153,113330.0,113320.0,0.17749135]
[1760496343254,0.00114153,113330.0,113320.0,0.28869135]
[1760496343895,0.00114153,113330.0,113320.0,0.17749135]